fUST/lending_fUST_20240610
["ID","MTS","AMOUNT","RATE_DAILY","PERIOD"]
[328946522,1718025039114,-1284.71860812,0.00019891,2]
[328946525,1718025039124,-1313.82,0.00019891,2]
[328946528,1718025039134,-521.35,0.00019891,2]
[328946529,1718025039144,-500.0,0.00019891,2]
[328946530,1718025039155,-500.0,0.00019891,2]
[328946531,1718025039166,-972.69,0.00019891,2]
[328946532,1718025039176,-1266.8688865,0.00019893,2]
[328946533,1718025039187,-867.75,0.00019893,2]
[328946534,1718025039197,-1600.43,0.00019893,2]
[328946535,1718025039208,-171.83250703,0.00019893,2]
[328946536,1718025039221,-745.86749297,0.00019893,2]
[328946537,1718025039232,-712.57,0.00019893,2]
[328946538,1718025039242,-500.0,0.00019893,2]
[328946539,1718025039252,-914.39,0.00019893,2]
[328946540,1718025039263,-500.0,0.00019893,2]
[328946541,1718025039278,-500.0,0.00019893,2]
[328946542,1718025039287,-500.0,0.00019893,2]
[328946543,1718025039297,-559.18,0.00019893,2]
[328946544,1718025039308,-500.0,0.00019893,2]
[328946545,1718025039319,-771.31,0.00019893,2]
[328946546,1718025039329,-1360.27,0.00019893,2]
[328946547,1718025039353,-2043.67,0.00019893,2]
[328946548,1718025039364,-962.4,0.00019893,2]
[328946549,1718025039374,-500.0,0.00019893,2]
[328946550,1718025039384,-500.0,0.00019893,2]
[328946551,1718025039394,-2294.87,0.00019893,2]
[328946552,1718025039405,-722.1,0.00019893,2]
[328946553,1718025039415,-500.0,0.00019893,2]
[328946554,1718025039578,-500.0,0.00019893,2]
[328946555,1718025039599,-500.0,0.00019895,2]
[328946556,1718025039609,-500.0,0.00019895,2]
[328946557,1718025039621,-500.0,0.00019895,2]
[328946558,1718025039632,-500.0,0.00019895,2]
[328946559,1718025039643,-520.41,0.00019895,2]
[328946560,1718025039654,-500.0,0.00019895,2]
[328946561,1718025039664,-500.0,0.00019895,2]
[328946562,1718025039675,-500.0,0.00019895,2]
[328946563,1718025039685,-500.0,0.00019895,2]
[328946564,1718025039696,-500.0,0.00019895,2]
[328946565,1718025039705,-556.01,0.00019895,2]
[328946566,1718025039715,-500.0,0.00019895,2]
[328946567,1718025039726,-364.9172706,0.00019895,2]
[328946568,1718025039736,-500.0,0.00019895,2]
[328946569,1718025039746,-500.0,0.00019895,2]
[328946570,1718025039756,-500.0,0.00019895,2]
[328946571,1718025039767,-542.45,0.00019895,2]
[328946572,1718025039777,-500.0,0.00019895,2]
[328946573,1718025039788,-937.86,0.00019895,2]
[328946574,1718025039798,-645.19213258,0.00019895,2]
[328946575,1718025039809,-500.0,0.00019895,2]
[328946576,1718025039819,-500.0,0.00019895,2]
[328946577,1718025039832,-500.0,0.00019895,2]
[328946578,1718025039844,-652.98,0.00019895,2]
[328946579,1718025039854,-826.99,0.00019895,2]
[328946580,1718025039864,-500.0,0.00019895,2]
[328946581,1718025039875,-500.0,0.00019895,2]
[328946582,1718025039886,-500.0,0.00019895,2]
[328946583,1718025039896,-1276.79,0.00019895,2]
[328946584,1718025039908,-500.0,0.00019895,2]
[328946585,1718025039918,-596.13,0.00019895,2]
[328946586,1718025039928,-500.0,0.00019895,2]
[328946587,1718025039939,-500.0,0.00019895,2]
[328946588,1718025039950,-500.0,0.00019895,2]
[328946589,1718025039960,-500.0,0.00019895,2]
[328946590,1718025039970,-500.0,0.00019895,2]
[328946591,1718025039980,-500.0,0.00019895,2]
[328946592,1718025039990,-500.0,0.00019895,2]
[328946593,1718025040000,-500.0,0.00019895,2]
[328946594,1718025040011,-500.0,0.00019895,2]
[328946595,1718025040022,-500.0,0.00019895,2]
[328946596,1718025040032,-500.0,0.00019895,2]
[328946597,1718025040043,-500.0,0.00019895,2]
[328946598,1718025040053,-1256.86,0.00019895,2]
[328946599,1718025040063,-500.0,0.00019895,2]
[328946600,1718025040073,-500.0,0.00019895,2]
[328946601,1718025040085,-500.0,0.00019895,2]
[328946602,1718025040095,-500.0,0.00019895,2]
[328946603,1718025040106,-500.0,0.00019895,2]
[328946604,1718025040116,-500.0,0.00019895,2]
[328946605,1718025040127,-1506.86,0.00019895,2]
[328946606,1718025040137,-500.0,0.00019895,2]
[328946607,1718025040148,-500.0,0.00019895,2]
[328946608,1718025040159,-500.0,0.00019895,2]
[328946609,1718025040169,-500.0,0.00019895,2]
[328946610,1718025040179,-500.0,0.00019895,2]
[328946611,1718025040190,-1081.24,0.00019895,2]
[328946612,1718025040202,-500.0,0.00019895,2]
[328946613,1718025040212,-500.0,0.00019895,2]
[328946614,1718025040222,-778.16,0.00019895,2]
[328946615,1718025040232,-861.76,0.00019895,2]
[328946616,1718025040242,-500.0,0.00019895,2]
[328946617,1718025040252,-578.34,0.00019895,2]
[328946618,1718025040263,-500.0,0.00019895,2]
[328946619,1718025040276,-500.0,0.00019895,2]
[328946620,1718025040286,-424.21154394,0.00019895,2]
[328946621,1718025040297,-500.0,0.00019895,2]
[328946622,1718025040307,-500.0,0.00019895,2]
[328946623,1718025040317,-500.0,0.00019895,2]
[328946624,1718025040327,-500.0,0.00019895,2]
[328946625,1718025040340,-500.0,0.00019895,2]
[328946626,1718025040353,-1906.18,0.00019895,2]
[328946627,1718025040364,-538.62,0.00019895,2]
[328946628,1718025040375,-500.0,0.00019895,2]
[328946629,1718025040385,-500.0,0.00019895,2]
[328946630,1718025040395,-500.0,0.00019895,2]
[328946631,1718025040406,-500.0,0.00019895,2]
[328946632,1718025040417,-588.47,0.00019895,2]
[328946633,1718025040427,-500.0,0.00019895,2]
[328946634,1718025040439,-500.0,0.00019895,2]
[328946635,1718025040449,-500.0,0.00019895,2]
[328946636,1718025040460,-500.0,0.00019895,2]
[328946637,1718025040471,-1419.7,0.00019895,2]
[328946638,1718025040482,-699.48,0.00019895,2]
[328946639,1718025040492,-2539.43,0.00019895,2]
[328946640,1718025040503,-500.0,0.00019895,2]
[328946641,1718025040513,-519.59,0.00019895,2]
[328946642,1718025040524,-500.0,0.00019895,2]
[328946643,1718025040534,-500.0,0.00019896,2]
[328946644,1718025040544,-517.07,0.00019896,2]
[328946645,1718025040555,-500.0,0.00019896,2]
[328946646,1718025040564,-500.0,0.00019896,2]
[328946647,1718025040575,-647.77,0.00019896,2]
[328946648,1718025040588,-500.0,0.00019896,2]
[328946649,1718025040598,-500.0,0.00019896,2]
[328946650,1718025040609,-500.0,0.00019896,2]
[328946651,1718025040622,-500.0,0.00019896,2]
[328946652,1718025040634,-653.31,0.00019896,2]
[328946653,1718025040644,-500.0,0.00019896,2]
[328946654,1718025040654,-500.0,0.00019896,2]
[328946655,1718025040665,-602.64,0.00019896,2]
[328946656,1718025040675,-500.0,0.00019896,2]
[328946657,1718025040686,-500.0,0.00019897,2]
[328946658,1718025040697,-500.0,0.00019897,2]
[328946659,1718025040707,-500.0,0.00019897,2]
[328946660,1718025040718,-500.0,0.00019897,2]
[328946661,1718025040729,-500.0,0.00019897,2]
[328946662,1718025040739,-500.0,0.00019897,2]
[328946663,1718025040750,-500.0,0.00019897,2]
[328946664,1718025040760,-500.0,0.00019897,2]
[328946665,1718025040770,-500.0,0.00019897,2]
[328946666,1718025040780,-500.0,0.00019897,2]
[328946667,1718025040791,-500.0,0.00019897,2]
[328946668,1718025040801,-500.0,0.00019897,2]
[328946669,1718025040811,-500.0,0.00019897,2]
[328946670,1718025040822,-500.0,0.00019897,2]
[328946671,1718025040834,-500.0,0.00019897,2]
[328946672,1718025040844,-500.0,0.00019897,2]
[328946673,1718025040854,-252.03967334,0.00019897,2]
[328946674,1718025040867,-500.0,0.00019897,2]
[328946675,1718025040877,-500.0,0.00019897,2]
[328946676,1718025040887,-516.11071645,0.00019929,2]
[328946677,1718025040899,-516.11071645,0.00019997,2]
[328946678,1718025040909,-394.23026647,0.0002,15]
[328946679,1718025040919,-1115.98840214,0.0002,2]
[328946680,1718025040930,-104357.3356117,0.0002,2]
[328946681,1718025040946,-20068.81412121,0.0002,2]
[328946682,1718025040957,-516.11071645,0.00020065,2]
[328946683,1718025040967,-384.09411136,0.00020165,2]
[328946684,1718025040979,-1223.09,0.00020165,2]
[328946686,1718025040989,-1871.62,0.00020165,2]
[328946687,1718025040999,-1313.82,0.00020165,2]
[328946688,1718025041009,-521.35,0.00020165,2]
[328946689,1718025041019,-500.0,0.00020165,2]
[328946690,1718025041030,-500.0,0.00020165,2]
[328946691,1718025041041,-972.69,0.00020165,2]
[328946692,1718025041052,-867.75,0.00020167,2]
[328946693,1718025041064,-1600.43,0.00020167,2]
[328946694,1718025041075,-917.7,0.00020167,2]
[328946695,1718025041087,-712.57,0.00020167,2]
[328946696,1718025041097,-500.0,0.00020167,2]
[328946698,1718025041107,-914.39,0.00020167,2]
[328946700,1718025041118,-500.0,0.00020167,2]
[328946701,1718025041129,-500.0,0.00020167,2]
[328946702,1718025041140,-500.0,0.00020167,2]
[328946703,1718025041152,-559.18,0.00020167,2]
[328946704,1718025041163,-500.0,0.00020167,2]
[328946705,1718025041174,-771.31,0.00020167,2]
[328946706,1718025041184,-1360.27,0.00020167,2]
[328946707,1718025041194,-2043.67,0.00020167,2]
[328946709,1718025041205,-962.4,0.00020167,2]
[328946711,1718025041215,-500.0,0.00020167,2]
[328946713,1718025041226,-500.0,0.00020167,2]
[328946715,1718025041237,-2294.87,0.00020167,2]
[328946717,1718025041249,-722.1,0.00020167,2]
[328946718,1718025041261,-500.0,0.00020167,2]
[328946719,1718025041275,-500.0,0.00020167,2]
[328946720,1718025041286,-500.0,0.00020169,2]
[328946721,1718025041297,-500.0,0.00020169,2]
[328946722,1718025041310,-520.41,0.00020169,2]
[328946724,1718025041320,-500.0,0.00020169,2]
[328946725,1718025041333,-500.0,0.00020169,2]
[328946726,1718025041343,-500.0,0.00020169,2]
[328946727,1718025041357,-556.01,0.00020169,2]
[328946728,1718025041369,-326.31353295,0.00020169,2]
[328946729,1718025041380,-500.0,0.00020169,2]
[328946730,1718025041391,-500.0,0.00020169,2]
[328946731,1718025041401,-500.0,0.00020169,2]
[328946732,1718025041412,-542.45,0.00020169,2]
[328946733,1718025041423,-500.0,0.00020169,2]
[328946734,1718025041434,-937.86,0.00020169,2]
[328946735,1718025041445,-444.15314908,0.00020169,2]
[328946736,1718025041456,-500.0,0.00020169,2]
[328946737,1718025041467,-500.0,0.00020169,2]
[328946738,1718025041478,-652.98,0.00020169,2]
[328946739,1718025041488,-826.99,0.00020169,2]
[328946741,1718025041579,-500.0,0.00020169,2]
[328946742,1718025041591,-500.0,0.00020169,2]
[328946743,1718025041602,-500.0,0.00020169,2]
[328946744,1718025041612,-1276.79,0.00020169,2]
[328946745,1718025041623,-500.0,0.00020169,2]
[328946746,1718025041632,-596.13,0.00020169,2]
[328946747,1718025041642,-500.0,0.00020169,2]
[328946748,1718025041653,-500.0,0.00020169,2]
[328946750,1718025041664,-500.0,0.00020169,2]
[328946751,1718025041675,-500.0,0.00020169,2]
[328946752,1718025041685,-476.76960589,0.00020169,2]
[328946753,1718025041696,-500.0,0.00020169,2]
[328946754,1718025041705,-500.0,0.00020169,2]
[328946755,1718025041715,-500.0,0.00020169,2]
[328946756,1718025041725,-500.0,0.00020169,2]
[328946757,1718025041735,-500.0,0.00020169,2]
[328946758,1718025041746,-500.0,0.00020169,2]
[328946759,1718025041756,-500.0,0.00020169,2]
[328946760,1718025041767,-1256.86,0.00020169,2]
[328946761,1718025041778,-500.0,0.00020169,2]
[328946762,1718025041790,-500.0,0.00020169,2]
[328946764,1718025041800,-500.0,0.00020169,2]
[328946766,1718025041810,-638.56971242,0.00020169,2]
[328946767,1718025041820,-500.0,0.00020169,2]
[328946769,1718025041830,-500.0,0.00020169,2]
[328946770,1718025041842,-1506.86,0.00020169,2]
[328946771,1718025041853,-500.0,0.00020169,2]
[328946772,1718025041865,-500.0,0.00020169,2]
[328946773,1718025041876,-500.0,0.00020169,2]
[328946774,1718025041886,-500.0,0.00020169,2]
[328946775,1718025041897,-500.0,0.00020169,2]
[328946776,1718025041908,-1081.24,0.00020169,2]
[328946777,1718025041918,-500.0,0.00020169,2]
[328946778,1718025041928,-500.0,0.00020169,2]
[328946779,1718025041938,-778.16,0.00020169,2]
[328946780,1718025041948,-861.76,0.00020169,2]
[328946781,1718025041958,-500.0,0.00020169,2]
[328946782,1718025041967,-578.34,0.00020169,2]
[328946783,1718025041978,-500.0,0.00020169,2]
[328946784,1718025041988,-500.0,0.00020169,2]
[328946785,1718025041998,-500.0,0.00020169,2]
[328946786,1718025042008,-500.0,0.00020169,2]
[328946787,1718025042019,-500.0,0.00020169,2]
[328946788,1718025042029,-500.0,0.00020169,2]
[328946789,1718025042039,-1906.18,0.00020169,2]
[328946790,1718025042049,-538.62,0.00020169,2]
[328946791,1718025042059,-500.0,0.00020169,2]
[328946792,1718025042069,-500.0,0.00020169,2]
[328946793,1718025042079,-500.0,0.00020169,2]
[328946794,1718025042091,-500.0,0.00020169,2]
[328946795,1718025042100,-588.47,0.00020169,2]
[328946796,1718025042110,-500.0,0.00020169,2]
[328946797,1718025042119,-500.0,0.00020169,2]
[328946798,1718025042130,-500.0,0.00020169,2]
[328946799,1718025042140,-609.81422858,0.00020169,2]
[328946800,1718025042150,-1419.7,0.00020169,2]
[328946801,1718025042161,-699.48,0.00020169,2]
[328946802,1718025042171,-2539.43,0.00020169,2]
[328946803,1718025042181,-500.0,0.00020169,2]
[328946804,1718025042191,-519.59,0.00020169,2]
[328946805,1718025042201,-500.0,0.00020169,2]
[328946806,1718025042210,-500.0,0.0002017,2]
[328946807,1718025042220,-517.07,0.0002017,2]
[328946808,1718025042230,-500.0,0.0002017,2]
[328946809,1718025042240,-647.77,0.0002017,2]
[328946810,1718025042250,-500.0,0.0002017,2]
[328946811,1718025042261,-500.0,0.0002017,2]
[328946812,1718025042276,-653.31,0.0002017,2]
[328946813,1718025042286,-602.64,0.0002017,2]
[328946814,1718025042297,-500.0,0.0002017,2]
[328946815,1718025042307,-624.73366007,0.00020171,2]
[328946816,1718025042317,-500.0,0.00020171,2]
[328946817,1718025042327,-500.0,0.00020171,2]
[328946818,1718025042339,-500.0,0.00020171,2]
[328946819,1718025042349,-500.0,0.00020171,2]
[328946820,1718025042360,-249.61711653,0.00020171,2]
[328946821,1718025042370,-500.0,0.00020171,2]
[328946822,1718025042381,-1223.09,0.00020439,2]
[328946823,1718025042391,-1871.62,0.00020439,2]
[328946824,1718025042401,-1313.82,0.00020439,2]
[328946825,1718025042411,-521.35,0.00020439,2]
[328946826,1718025042421,-500.0,0.00020439,2]
[328946827,1718025042433,-500.0,0.00020439,2]
[328946828,1718025042450,-972.69,0.00020439,2]
[328946829,1718025042466,-867.75,0.00020441,2]
[328946830,1718025042482,-1600.43,0.00020441,2]
[328946831,1718025042494,-917.7,0.00020441,2]
[328946832,1718025042509,-712.57,0.00020441,2]
[328946833,1718025042524,-500.0,0.00020441,2]
[328946834,1718025042538,-914.39,0.00020441,2]
[328946835,1718025042553,-500.0,0.00020441,2]
[328946836,1718025042568,-500.0,0.00020441,2]
[328946837,1718025042587,-500.0,0.00020441,2]
[328946838,1718025042602,-559.18,0.00020441,2]
[328946839,1718025042616,-636.15509356,0.00020441,2]
[328946840,1718025042630,-771.31,0.00020441,2]
[328946841,1718025042645,-1360.27,0.00020441,2]
[328946842,1718025042659,-2043.67,0.00020441,2]
[328946843,1718025042676,-962.4,0.00020441,2]
[328946844,1718025042690,-500.0,0.00020441,2]
[328946845,1718025042702,-500.0,0.00020441,2]
[328946846,1718025042714,-2294.87,0.00020441,2]
[328946847,1718025042729,-722.1,0.00020441,2]
[328946848,1718025042742,-500.0,0.00020441,2]
[328946849,1718025042756,-253.6360833,0.00020441,2]
[328946850,1718025042770,-500.0,0.00020443,2]
[328946851,1718025042783,-500.0,0.00020443,2]
[328946852,1718025042799,-520.41,0.00020443,2]
[328946853,1718025042814,-500.0,0.00020443,2]
[328946854,1718025042828,-500.0,0.00020443,2]
[328946855,1718025042841,-500.0,0.00020443,2]
[328946856,1718025042852,-556.01,0.00020443,2]
[328946857,1718025042864,-500.0,0.00020443,2]
[328946858,1718025042878,-500.0,0.00020443,2]
[328946859,1718025042892,-500.0,0.00020443,2]
[328946860,1718025042905,-542.45,0.00020443,2]
[328946861,1718025042917,-500.0,0.00020443,2]
[328946862,1718025042929,-937.86,0.00020443,2]
[328946863,1718025042942,-500.0,0.00020443,2]
[328946864,1718025042956,-500.0,0.00020443,2]
[328946865,1718025042968,-652.98,0.00020443,2]
[328946866,1718025042980,-826.99,0.00020443,2]
[328946867,1718025042991,-500.0,0.00020443,2]
[328946868,1718025043004,-500.0,0.00020443,2]
[328946869,1718025043016,-500.0,0.00020443,2]
[328946870,1718025043028,-1276.79,0.00020443,2]
[328946871,1718025043040,-312.29232418,0.00020443,2]
[328946872,1718025043053,-596.13,0.00020443,2]
[328946873,1718025043065,-500.0,0.00020443,2]
[328946874,1718025043077,-500.0,0.00020443,2]
[328946875,1718025043090,-500.0,0.00020443,2]
[328946876,1718025043102,-500.0,0.00020443,2]
[328946877,1718025043114,-500.0,0.00020443,2]
[328946878,1718025043126,-500.0,0.00020443,2]
[328946879,1718025043138,-500.0,0.00020443,2]
[328946880,1718025043151,-500.0,0.00020443,2]
[328946881,1718025043163,-500.0,0.00020443,2]
[328946882,1718025043175,-500.0,0.00020443,2]
[328946883,1718025043188,-500.0,0.00020443,2]
[328946884,1718025043200,-1256.86,0.00020443,2]
[328946885,1718025043212,-500.0,0.00020443,2]
[328946886,1718025043225,-500.0,0.00020443,2]
[328946887,1718025043237,-500.0,0.00020443,2]
[328946888,1718025043250,-1506.86,0.00020443,2]
[328946889,1718025043263,-420.18544994,0.00020443,2]
[328946890,1718025043277,-500.0,0.00020443,2]
[328946891,1718025043289,-500.0,0.00020443,2]
[328946892,1718025043301,-500.0,0.00020443,2]
[328946893,1718025043315,-1081.24,0.00020443,2]
[328946894,1718025043327,-500.0,0.00020443,2]
[328946895,1718025043339,-500.0,0.00020443,2]
[328946896,1718025043352,-778.16,0.00020443,2]
[328946897,1718025043363,-861.76,0.00020443,2]
[328946898,1718025043374,-500.0,0.00020443,2]
[328946899,1718025043386,-578.34,0.00020443,2]
[328946900,1718025043398,-500.0,0.00020443,2]
[328946901,1718025043410,-500.0,0.00020443,2]
[328946902,1718025043422,-500.0,0.00020443,2]
[328946903,1718025043433,-500.0,0.00020443,2]
[328946904,1718025043446,-500.0,0.00020443,2]
[328946905,1718025043459,-500.0,0.00020443,2]
[328946906,1718025043471,-1906.18,0.00020443,2]
[328946907,1718025043481,-538.62,0.00020443,2]
[328946908,1718025043649,-500.0,0.00020443,2]
[328946910,1718025043679,-500.0,0.00020443,2]
[328946911,1718025043691,-500.0,0.00020443,2]
[328946912,1718025043702,-500.0,0.00020443,2]
[328946913,1718025043713,-588.47,0.00020443,2]
[328946914,1718025043723,-500.0,0.00020443,2]
[328946915,1718025043733,-500.0,0.00020443,2]
[328946916,1718025043743,-500.0,0.00020443,2]
[328946917,1718025043753,-1419.7,0.00020443,2]
[328946918,1718025043763,-699.48,0.00020443,2]
[328946919,1718025043774,-2539.43,0.00020443,2]
[328946920,1718025043784,-500.0,0.00020443,2]
[328946921,1718025043794,-519.59,0.00020443,2]
[328946922,1718025043804,-500.0,0.00020443,2]
[328946923,1718025043814,-500.0,0.00020444,2]
[328946924,1718025043824,-517.07,0.00020444,2]
[328946925,1718025043834,-500.0,0.00020444,2]
[328946926,1718025043846,-647.77,0.00020444,2]
[328946927,1718025043855,-500.0,0.00020444,2]
[328946928,1718025043866,-500.0,0.00020444,2]
[328946929,1718025043876,-653.31,0.00020444,2]
[328946930,1718025043886,-602.64,0.00020444,2]
[328946931,1718025043896,-500.0,0.00020444,2]
[328946932,1718025043906,-500.0,0.00020445,2]
[328946933,1718025043916,-576.34887078,0.00020445,2]
[328946934,1718025043926,-500.0,0.00020445,2]
[328946935,1718025043936,-500.0,0.00020445,2]
[328946936,1718025043946,-500.0,0.00020445,2]
[328946938,1718025043956,-1223.09,0.00020713,2]
[328946939,1718025043966,-1871.62,0.00020713,2]
[328946941,1718025043976,-1313.82,0.00020713,2]
[328946943,1718025043986,-521.35,0.00020713,2]
[328946946,1718025043996,-500.0,0.00020713,2]
[328946947,1718025044005,-500.0,0.00020713,2]
[328946949,1718025044015,-867.75,0.00020715,2]
[328946950,1718025044025,-1600.43,0.00020715,2]
[328946951,1718025044035,-917.7,0.00020715,2]
[328946952,1718025044044,-712.57,0.00020715,2]
[328946953,1718025044054,-500.0,0.00020715,2]
[328946954,1718025044063,-914.39,0.00020715,2]
[328946955,1718025044073,-500.0,0.00020715,2]
[328946956,1718025044083,-500.0,0.00020715,2]
[328946957,1718025044094,-500.0,0.00020715,2]
[328946958,1718025044103,-559.18,0.00020715,2]
[328946959,1718025044113,-771.31,0.00020715,2]
[328946960,1718025044122,-1360.27,0.00020715,2]
[328946961,1718025044132,-2043.67,0.00020715,2]
[328946962,1718025044141,-962.4,0.00020715,2]
[328946963,1718025044151,-500.0,0.00020715,2]
[328946964,1718025044161,-500.0,0.00020715,2]
[328946965,1718025044171,-2294.87,0.00020715,2]
[328946966,1718025044181,-722.1,0.00020715,2]
[328946967,1718025044191,-500.0,0.00020715,2]
[328946968,1718025044200,-500.0,0.00020717,2]
[328946969,1718025044211,-500.0,0.00020717,2]
[328946970,1718025044222,-520.41,0.00020717,2]
[328946971,1718025044231,-500.0,0.00020717,2]
[328946972,1718025044241,-500.0,0.00020717,2]
[328946973,1718025044251,-500.0,0.00020717,2]
[328946974,1718025044261,-556.01,0.00020717,2]
[328946975,1718025044275,-500.0,0.00020717,2]
[328946976,1718025044285,-500.0,0.00020717,2]
[328946977,1718025044295,-500.0,0.00020717,2]
[328946978,1718025044305,-542.45,0.00020717,2]
[328946979,1718025044315,-500.0,0.00020717,2]
[328946980,1718025044324,-937.86,0.00020717,2]
[328946981,1718025044334,-500.0,0.00020717,2]
[328946982,1718025044345,-500.0,0.00020717,2]
[328946983,1718025044357,-652.98,0.00020717,2]
[328946984,1718025044367,-826.99,0.00020717,2]
[328946985,1718025044377,-500.0,0.00020717,2]
[328946986,1718025044387,-500.0,0.00020717,2]
[328946987,1718025044398,-501.96535637,0.00020717,2]
[328946988,1718025044408,-1276.79,0.00020717,2]
[328946989,1718025044418,-596.13,0.00020717,2]
[328946990,1718025044428,-500.0,0.00020717,2]
[328946991,1718025044438,-500.0,0.00020717,2]
[328946992,1718025044448,-500.0,0.00020717,2]
[328946993,1718025044457,-500.0,0.00020717,2]
[328946994,1718025044467,-500.0,0.00020717,2]
[328946995,1718025044477,-500.0,0.00020717,2]
[328946996,1718025044488,-500.0,0.00020717,2]
[328946997,1718025044497,-500.0,0.00020717,2]
[328946998,1718025044508,-500.0,0.00020717,2]
[328946999,1718025044518,-500.0,0.00020717,2]
[328947000,1718025044528,-500.0,0.00020717,2]
[328947001,1718025044538,-1256.86,0.00020717,2]
[328947002,1718025044548,-500.0,0.00020717,2]
[328947003,1718025044559,-500.0,0.00020717,2]
[328947004,1718025044569,-412.88009459,0.00020717,2]
[328947005,1718025044579,-1506.86,0.00020717,2]
[328947006,1718025044591,-500.0,0.00020717,2]
[328947007,1718025044601,-500.0,0.00020717,2]
[328947008,1718025044611,-500.0,0.00020717,2]
[328947009,1718025044621,-1081.24,0.00020717,2]
[328947010,1718025044631,-500.0,0.00020717,2]
[328947011,1718025044641,-500.0,0.00020717,2]
[328947012,1718025044651,-778.16,0.00020717,2]
[328947013,1718025044662,-861.76,0.00020717,2]
[328947014,1718025044672,-500.0,0.00020717,2]
[328947015,1718025044682,-578.34,0.00020717,2]
[328947016,1718025044693,-500.0,0.00020717,2]
[328947017,1718025044704,-500.0,0.00020717,2]
[328947018,1718025044714,-314.72766924,0.00020717,2]
[328947019,1718025044725,-500.0,0.00020717,2]
[328947020,1718025044735,-500.0,0.00020717,2]
[328947021,1718025044745,-500.0,0.00020717,2]
[328947022,1718025044755,-1906.18,0.00020717,2]
[328947023,1718025044765,-538.62,0.00020717,2]
[328947024,1718025044775,-500.0,0.00020717,2]
[328947025,1718025044785,-500.0,0.00020717,2]
[328947026,1718025044794,-500.0,0.00020717,2]
[328947027,1718025044805,-500.0,0.00020717,2]
[328947028,1718025044815,-588.47,0.00020717,2]
[328947029,1718025044825,-500.0,0.00020717,2]
[328947030,1718025044835,-500.0,0.00020717,2]
[328947031,1718025044846,-500.0,0.00020717,2]
[328947032,1718025044856,-1419.7,0.00020717,2]
[328947033,1718025044866,-2539.43,0.00020717,2]
[328947034,1718025044876,-500.0,0.00020717,2]
[328947035,1718025044886,-519.59,0.00020717,2]
[328947036,1718025044896,-500.0,0.00020717,2]
[328947037,1718025044906,-500.0,0.00020718,2]
[328947038,1718025044915,-517.07,0.00020718,2]
[328947039,1718025044925,-500.0,0.00020718,2]
[328947040,1718025044935,-647.77,0.00020718,2]
[328947041,1718025044944,-500.0,0.00020718,2]
[328947042,1718025044954,-500.0,0.00020718,2]
[328947043,1718025044964,-653.31,0.00020718,2]
[328947044,1718025044975,-602.64,0.00020718,2]
[328947045,1718025044985,-500.0,0.00020718,2]
[328947046,1718025044995,-500.0,0.00020719,2]